Cogmind - Beta 11.1 @@@ ROGUE MODE // 2022.05.06 @ 22:23:30 Player: Savant Result: Escaped! Performance ------------- Evolutions (9) 4500 Regions Visited (31) 6200 Robots Destroyed (193) 965 Value Destroyed (9005) 9005 Prototype IDs (81) 1620 Alien Tech Used (2) 400 Bonus (11967) 11967 TOTAL SCORE: 34657 Bonus ------- High Alert Combat Kills 537 Follower Combat Kills 2898 Entered DSFs 500 Network Hubs Disabled 200 Aligned with FarCom 300 Met Imprinter 300 Met Zhirov 300 Met Warlord at Base 500 MAIN.C Attacked Warlord 500 Warlord Defense Kill 910 Met R17 at Cetus 500 Met Warlord at Research 2000 Win 3000 Friendly Fire -478 Cogmind --------- Core Integrity 966/1600 Matter 260/300 Energy 578/650 System Corruption 10% Temperature Cool (-191) Movement Treading (145) Location To Epsilon Eridani Parts ------- > --- POWER (3) -------- Micro Antimatter Reactor Reinforced Quantum Reactor Reinforced Quantum Reactor > --- PROPULSION (6) --- Biometal Heavy Treads Biometal Heavy Treads Biometal Heavy Treads > --- UTILITY (14) ----- Advanced Cryofiber Web Advanced Heat Sink Advanced Cooling System Advanced Coolant Injector Huge Storage Unit Enhanced Optical Array Advanced Signal Interpreter Advanced Targeting Computer Advanced Weapon Cycler Advanced Hacking Suite Improved Trap Extractor (0/6) Advanced Trap Extractor (0/8) > --- WEAPON (3) ------- Gamma Rifle Enhanced Quantum Rifle Enhanced Nova Cannon > --- INVENTORY (25) --- Armored Heavy Treads Biometal Heavy Treads Centrium Wheel Advanced Cryofiber Web Advanced Cooling System Advanced Energy Well (500) Advanced Actuator Array Authchip [R/Combat] Authchip [Device] Improved Trap Extractor (0/6) Trap Reconfigurator Transdimensional Reconstructor Long-range Phase Cannon Heavy Shock Bomb Launcher Dirty Datajack (15) Thunder Hammer Fire Trap Fire Trap Peak State ------------ > --- POWER ------------ Improved Quantum Reactor Vortex Chain Reactor > --- PROPULSION ------- Centrium Heavy Treads Biometal Heavy Treads Biometal Heavy Treads > --- UTILITY ---------- Advanced Cryofiber Web Experimental Coolant Injector Huge Storage Unit Enhanced Optical Array Advanced Signal Interpreter Advanced Targeting Computer Advanced Particle Charger Particle Accelerator Advanced Weapon Cycler Layered Heavy Armor Plating Advanced Shield Generator Advanced Hacking Suite Improved System Shield > --- WEAPON ----------- Enhanced Quantum Rifle Long-range Phase Cannon Enhanced Nova Cannon > --- INVENTORY -------- Micro Antimatter Reactor Micro Antimatter Reactor Biometal Heavy Treads Biometal Heavy Treads Centrium Wheel Advanced Energy Well Long-range Terrain Scanner Advanced Weapon Cycler Advanced Actuator Array Authchip [R/Combat] Authchip [Device] Improved Trap Extractor Improved Trap Extractor Advanced Trap Extractor Trap Reconfigurator Transdimensional Reconstructor Gamma Rifle Gamma Rifle Enhanced Nova Cannon Improved KE Penetrator Heavy Shock Bomb Launcher Dirty Datajack Thunder Hammer [Rating: 210] Favorites ----------- Power Cooled Deuterium Engine Engine Cooled Deuterium Engine Power Core Reinforced Fission Core Reactor Fusion Reactor Propulsion Centrium Heavy Treads Treads Centrium Heavy Treads Leg Improved Aluminum Leg Wheel Wheel Hover Unit Cooled Gravmag System Utility Centrium Medium Armor Plating Device Trap Scanner Storage Huge Storage Unit Processor Advanced Targeting Computer Hackware Hacking Suite Protection Centrium Medium Armor Plating Weapon Heavy Plasma Cannon Energy Gun Improved Medium Laser Energy Cannon Heavy Plasma Cannon Ballistic Gun Improved KE Penetrator Ballistic Cannon Heavy Mass Driver Launcher Heavy Shock Bomb Launcher Impact Weapon Thunder Hammer Slashing Weapon Chainsword Special Melee Weapon Datajack Build | -11 -10 -10 -9 -9 -9 -8 -8 -7 -7 -7 -7 -6 -6 -6 -6 -6 -6 -5 -5 -5 -5 -4 -4 -4 -4 -4 -3 -3 -3 -2 -1 ------- Run | Scr Mat Min Mat Min Exi Min Mat Fac Low Low Zio Pro Fac Ext Cet Arc Hub Fac Upp Upp Zhi Pro Fac Upp Upp War Pro Res DSF Res Acc Slots Evolved 18 | . . . 2 . . . 2 2 . . . . 2 . . . . 2 . . . . 2 . . . . 2 . 2 2 Power 1 | . . . . . . . . . . . . . . . . . . . . . . . 1 . . . . . . . . Propulsion 4 | . . . 1 . . . . . . . . . . . . . . 1 . . . . . . . . . 2 . . . Utility 12 | . . . 1 . . . 2 2 . . . . 2 . . . . 1 . . . . 1 . . . . . . 1 2 Weapon 1 | . . . . . . . . . . . . . . . . . . . . . . . . . . . . . . 1 . Parts Attached 561 | 7 10 3 18 14 . 4 47 68 8 21 1 9 53 28 11 4 12 45 7 12 7 14 20 21 6 16 8 3 11 15 58 Power 24 | 1 . 1 1 1 . . 2 3 . . . . 2 . . . 1 2 . . 1 . 1 . . 1 . . 2 . 5 Engine 12 | 1 . 1 1 1 . . 2 3 . . . . . . . . 1 2 . . . . . . . . . . . . . Core 2 | . . . . . . . . . . . . . . . . . . . . . . . 1 . . . . . 1 . . Reactor 10 | . . . . . . . . . . . . . 2 . . . . . . . 1 . . . . 1 . . 1 . 5 Propulsion 45 | 3 3 . 3 . . 1 9 3 . 3 . 1 2 1 2 . . 1 . . 2 . . . . 1 2 1 . 4 3 Treads 22 | . 1 . . . . . 3 1 . 2 . 1 1 . 2 . . 1 . . 1 . . . . 1 1 1 . 3 3 Leg 9 | . 2 . 3 . . 1 3 . . . . . . . . . . . . . . . . . . . . . . . . Wheel 13 | 3 . . . . . . 3 2 . 1 . . 1 1 . . . . . . . . . . . . 1 . . 1 . Hover 1 | . . . . . . . . . . . . . . . . . . . . . 1 . . . . . . . . . . Flight . | . . . . . . . . . . . . . . . . . . . . . . . . . . . . . . . . Utility 392 | 1 3 . 5 7 . 3 29 49 8 18 1 7 45 25 8 4 9 34 7 12 4 10 19 17 3 10 4 2 5 4 39 Device 270 | . 1 . 4 7 . 3 20 38 8 16 1 5 31 16 2 2 7 18 5 10 3 6 8 10 2 5 2 1 3 1 35 Storage 9 | 1 1 . 1 . . . 2 2 . 1 . . . . 1 . . . . . . . . . . . . . . . . Processor 10 | . 1 . . . . . 1 2 . . . 1 1 . . . . 1 . . . . 2 . . . . . . 1 . Hackware 15 | . . . . . . . 1 1 . . . . 3 1 . 1 . 2 . . . . 2 1 . . . 1 . 1 1 Protection 88 | . . . . . . . 5 6 . 1 . 1 10 8 5 1 2 13 2 2 1 4 7 6 1 5 2 . 2 1 3 Artifact . | . . . . . . . . . . . . . . . . . . . . . . . . . . . . . . . . Weapon 100 | 2 4 2 9 6 . . 7 13 . . . 1 4 2 1 . 2 8 . . . 4 . 4 3 4 2 . 4 7 11 Energy Gun 31 | 2 2 1 5 3 . . 4 1 . . . . . . 1 . 1 3 . . . . . . . . . . 1 3 4 Energy Cannon 34 | . 1 . 3 . . . 1 7 . . . 1 4 2 . . 1 3 . . . 2 . 1 2 1 1 . . 1 3 Ballistic Gun 6 | . . . . . . . . . . . . . . . . . . . . . . . . 2 . 1 . . . 1 2 Ballistic Cannon 1 | . . . . . . . . . . . . . . . . . . 1 . . . . . . . . . . . . . Launcher 13 | . 1 1 . 1 . . 2 2 . . . . . . . . . . . . . 2 . 1 . 1 . . . 1 1 Special Weapon . | . . . . . . . . . . . . . . . . . . . . . . . . . . . . . . . . Impact Weapon 8 | . . . . . . . . . . . . . . . . . . 1 . . . . . . 1 1 1 . 2 1 1 Slashing Weapon 3 | . . . . . . . . 3 . . . . . . . . . . . . . . . . . . . . . . . Piercing Weapon . | . . . . . . . . . . . . . . . . . . . . . . . . . . . . . . . . Special Melee Weapon 4 | . . . 1 2 . . . . . . . . . . . . . . . . . . . . . . . . 1 . . Unidentified Prototypes 23 | . . . 1 1 . . 2 . . . . . . . 5 . . 1 . . 5 . . . 1 4 . . 1 . 2 Corrupted Parts 3 | . . . . . . . . . . . . . . . . . . 1 . . . . . . . . 1 . . . 1 System Corruption 7 | . . . . . . . . . . . . . . . . . . 2 . . . . . . . . 3 . . . 2 Parts Lost 69 | . 1 . 3 1 . . 6 4 1 2 . . 1 6 . 1 1 5 . . . . 3 2 . 6 . . 6 . 20 Power 4 | . . . . . . . . 1 . . . . . . . . 1 . . . . . . . . . . . . . 2 Propulsion 13 | . 1 . 1 . . . 3 . . 2 . . 1 1 . . . . . . . . . . . 1 . . 1 . 2 Utility 42 | . . . . 1 . . 2 3 1 . . . . 4 . 1 . 4 . . . . 3 1 . 5 . . 5 . 12 Weapon 10 | . . . 2 . . . 1 . . . . . . 1 . . . 1 . . . . . 1 . . . . . . 4 Highest Loss Streak 8 | . 1 . 1 1 . . 4 3 1 1 . . 1 3 . 1 1 2 . . . . 2 1 . 6 . . 4 . 8 To Critical Strikes . | . . . . . . . . . . . . . . . . . . . . . . . . . . . . . . . . Average Slot Usage (%) 90 | . 91 100 99 99 100 100 94 95 91 92 92 93 92 92 92 93 93 87 88 88 86 88 87 88 85 84 80 75 77 77 79 Engine 4 | . 14 14 11 11 11 11 8 6 7 7 7 7 5 . . . . 5 5 5 3 . . . . . . . . . . Reactor 2 | . . . . . . . . . . . . . . 6 6 6 5 . . . 1 5 5 5 5 7 10 9 9 8 7 Treads 7 | . 9 . . . . . 4 7 7 7 7 7 5 3 8 13 13 11 11 11 10 11 10 10 10 10 10 10 10 11 11 Leg 4 | . 6 28 32 33 33 33 18 . . . . . . . . . . . . . . . . . . . . . . . . Wheel 5 | . 11 . . . . . 3 15 15 15 15 15 6 8 4 . . . . . . . . . . . . . . . . Device 12 | . . . 11 10 11 11 10 13 12 8 7 7 10 14 13 12 19 9 22 22 22 18 13 13 14 13 15 13 10 11 18 Storage 6 | . 14 14 11 11 11 11 9 7 7 7 7 7 6 6 6 6 6 5 5 5 5 5 5 5 5 5 5 4 4 4 3 Processor 10 | . 5 14 11 11 11 11 9 15 9 7 7 8 13 10 6 6 6 5 11 11 11 11 15 15 15 15 15 13 13 12 12 Hackware 7 | . . . . . . . 8 6 7 7 7 7 14 17 13 13 13 13 . . . . 8 9 5 4 . 1 4 7 6 Protection 11 | . . . . . . . 3 4 7 13 15 15 13 9 19 20 13 21 17 17 17 21 12 12 15 16 15 13 14 7 4 Energy Gun 4 | . 24 12 11 21 22 22 10 3 . . . . . . 5 6 5 4 5 5 5 5 5 3 . . . . 2 3 3 Energy Cannon 7 | . 3 14 9 . . . 6 9 15 15 15 15 13 12 6 6 6 4 5 5 5 4 5 5 . 4 3 4 3 2 3 Naked Turns . | . . . . . . . . . . . . . . . . . . . . . . . . . . . . . . . . Heaviest Build 203 | 14 20 23 35 37 36 37 72 129 128 134 133 134 134 142 130 133 137 146 143 143 138 144 157 160 161 174 165 157 163 179 203 Greatest Support 230 | 26 26 26 39 39 39 39 39 28 22 22 22 22 38 38 110 110 110 160 160 160 160 160 160 160 160 160 160 230 230 230 230 Greatest Overweight (x) 7 | . 1 . 1 . . . 7 5 5 6 6 6 5 4 3 1 1 . . . 1 . . . 1 1 1 . 1 . . Average Overweight (x) 1 | . . . . . . . 1 3 5 5 5 5 3 3 1 1 1 . . . . . . . . . . . . . . Largest Inventory Capacity 30 | 8 10 10 15 15 15 15 30 25 25 25 25 25 25 25 25 25 25 25 25 25 25 25 25 25 25 25 25 25 25 25 25 Average Capacity 23 | 7 8 10 14 15 15 15 16 23 25 25 25 25 25 25 25 25 25 25 25 25 25 25 25 25 25 25 25 25 25 25 25 Most Carried 25 | 8 10 10 15 15 15 15 20 25 25 25 25 25 25 25 25 25 25 25 25 25 25 25 25 25 25 25 24 25 25 25 25 Average Carried 22 | 3 8 9 12 14 14 14 15 22 24 24 25 24 24 24 24 24 24 22 25 25 24 24 24 24 24 24 19 24 24 24 23 Final Capacity 25 | 8 10 10 15 15 15 15 20 25 25 25 25 25 25 25 25 25 25 25 25 25 25 25 25 25 25 25 25 25 25 25 25 Final Carried 25 | 8 10 10 15 14 15 15 20 25 24 25 25 24 25 25 25 25 24 25 25 25 25 25 24 25 25 18 24 24 23 25 20 Class Distribution -------------------- 45% | Trapper-Mutant 22% | Trapper-Skirmisher 12% | Mutant 6% | Trapper-Assassin 3% | Scavenger-Mutant Dominant Class ---------------- Mutant | -10/Materials Mutant | -10/Mines Mutant | -9/Materials Mutant | -9/Mines Trapper-Mutant | -9/Exiles Mutant | -8/Mines Mutant | -8/Materials Trapper-Skirmisher | -7/Factory Trapper-Mutant | -7/Lower Caves Trapper-Mutant | -7/Lower Caves Trapper-Mutant | -7/Zion Trapper-Mutant | -6/Proximity Caves Hacker-Skirmisher | -6/Factory Trapper-Skirmisher | -6/Extension Trapper-Skirmisher | -6/Cetus Trapper-Skirmisher | -6/Archives Trapper-Skirmisher | -6/Hub_04(d) Trapper-Mutant | -5/Factory Trapper-Mutant | -5/Upper Caves Trapper-Mutant | -5/Upper Caves Trapper-Mutant | -5/Zhirov Trapper-Mutant | -4/Proximity Caves Trapper-Mutant | -4/Factory Trapper-Skirmisher | -4/Upper Caves Trapper-Assassin | -4/Upper Caves Trapper-Mutant | -4/Warlord Trapper-Skirmisher | -3/Proximity Caves Trapper-Skirmisher | -3/Research Trapper-Mutant | -3/DSF Trapper-Assassin | -2/Research Trapper-Gunner | -1/Access Resources | -11 -10 -10 -9 -9 -9 -8 -8 -7 -7 -7 -7 -6 -6 -6 -6 -6 -6 -5 -5 -5 -5 -4 -4 -4 -4 -4 -3 -3 -3 -2 -1 ----------- Run | Scr Mat Min Mat Min Exi Min Mat Fac Low Low Zio Pro Fac Ext Cet Arc Hub Fac Upp Upp Zhi Pro Fac Upp Upp War Pro Res DSF Res Acc Matter Collected 6884 | 268 60 208 167 101 . 156 495 759 129 469 10 90 540 245 169 40 116 450 70 170 . 266 207 304 60 90 241 . 55 157 792 Remotely . | . . . . . . . . . . . . . . . . . . . . . . . . . . . . . . . . Salvage Created 11193 | 22 348 54 563 17 . 148 647 812 11 288 . . 717 573 130 106 88 1186 . 130 . 745 331 535 88 397 550 . 41 6 2660 Parts 446 | 4 15 . 27 9 . 4 35 37 1 9 . . 37 23 8 10 1 52 . 6 . 20 6 19 . 9 7 . . 1 106 Haulers Intercepted 9 | . 1 . 2 . . . 3 . . 1 . . 1 . . . . . . . . . . . . . . . . . 1 Recyclers Shooed 4 | . . . 1 . . . . 1 . . . . . 1 . . . . . . . . . . . . . . . . 1 Parts Field Recycled . | . . . . . . . . . . . . . . . . . . . . . . . . . . . . . . . . Retrieved Matter . | . . . . . . . . . . . . . . . . . . . . . . . . . . . . . . . . Parts Self-Destructed 131 | . . . . . . . . . 5 11 . 7 . . . . . . . 6 . 11 . 6 . 82 3 . . . . Prevented 42 | . . . . . . . . . . 8 . 2 . . . . . . . . . 13 . 12 2 5 . . . . . Kills | -11 -10 -10 -9 -9 -9 -8 -8 -7 -7 -7 -7 -6 -6 -6 -6 -6 -6 -5 -5 -5 -5 -4 -4 -4 -4 -4 -3 -3 -3 -2 -1 ------- Run | Scr Mat Min Mat Min Exi Min Mat Fac Low Low Zio Pro Fac Ext Cet Arc Hub Fac Upp Upp Zhi Pro Fac Upp Upp War Pro Res DSF Res Acc Combat Hostiles Destroyed 169 | . 8 16 9 4 . 2 10 15 1 3 . . 10 8 3 . . 18 . 2 . 9 5 6 1 7 1 . 1 . 30 Melee 2 | . . . . . . . . . . . . . 1 . . . . . . . . . . . . . . . . . 1 Guns 49 | . 8 1 7 1 . 2 3 2 . . . . . . . . . 11 . . . 2 . 1 . 2 . . . . 9 Cannons 56 | . . . 2 . . . 3 6 1 3 . . 6 6 2 . . 5 . 2 . 2 3 . . 1 1 . . . 13 AOE 37 | . . 15 . 3 . . 3 5 . . . . 2 . . . . . . . . 2 . 2 . 4 . . . . 1 Classes Destroyed 21 | 1 4 1 3 . . 1 1 2 . . . . 1 2 . . . 2 . . . 1 . . . 1 . . 1 . . Worker 1 | . . . . . . . . . . . . . . 1 . . . . . . . . . . . . . . . . . Builder 5 | . . . . . . . . 1 . . . . . . . . 1 1 . . . . . . . . . . . . 2 Tunneler 4 | 1 . . . . . . 2 . . . . . . . . . . . . . . . . . . . . . . 1 . Hauler 9 | . 1 . 2 . . . 3 . . 1 . . 1 . . . . . . . . . . . . . . . . . 1 Recycler 8 | . . . . . . 1 1 4 . . . . 1 . . . . . . . . . . . . . . . . . 1 Minesweeper 3 | . . . . . . . . . . . . . . . . . . . . . . 1 . 1 1 . . . . . . Operator 5 | . . . 1 . . . . 1 . . . . . . . 3 . . . . . . . . . . . . . . . Watcher 4 | . 1 . . . . . 1 . . . . . 2 . . . . . . . . . . . . . . . . . . Swarmer 29 | . 3 . . 4 . . 4 9 1 . . . 1 . 2 . . . . . . . . . . 2 . . . . 3 Saboteur 1 | . . . . . . . . . . . . . 1 . . . . . . . . . . . . . . . . . . Grunt 53 | . 5 . 4 . . 1 3 1 . 2 . . 3 2 . . . 9 . . . 5 . 2 1 2 . . . . 13 Brawler 5 | . . . . . . . . . . . . . . . . . . 1 . . . 2 . 1 . 1 . . . . . Duelist 5 | . . . 1 . . 1 . . . . . . . . . . . 2 . . . . . 1 . . . . . . . Sentry 23 | . . . 4 . . . 2 3 . . . . 1 4 . . . 1 . 1 . . 3 1 . . 1 . . . 2 Specialist 1 | . . . . . . . . . . . . . . . . . . . . . . . . . . . . . 1 . . Hunter 6 | . . . . . . . 1 . . 1 . . . . . . . . . 1 . 2 . . . 1 . . . . . Programmer 22 | . . . . . . . . 2 . . . . 4 . . . . 3 . . . . 2 1 . . . . . . 10 Heavy 3 | . . . . . . . . . . . . . . . . . . 2 . . . . . . . . . . . . 1 Behemoth 3 | . . . . . . . . . . . . . . 2 . . . . . . . . . . . . . . . . 1 Cetus Guard 1 | . . . . . . . . . . . . . . . 1 . . . . . . . . . . . . . . . . Enhanced Grunt 1 | . . . . . . . . . . . . . . . . . 1 . . . . . . . . . . . . . . Striker 1 | . . . . . . . . . . . . . . . . . . . . . . . . . . 1 . . . . . Assembled 16 | . . 16 . . . . . . . . . . . . . . . . . . . . . . . . . . . . . Best Kill Streak 15 | 1 2 15 3 4 . 3 5 5 1 2 . . 2 4 2 1 1 3 . 1 . 4 3 5 2 5 1 . 1 1 6 Combat Bots Only 15 | . 2 15 3 4 . 2 5 4 1 2 . . 2 3 2 . . 3 . 1 . 4 3 5 1 5 1 . 1 . 6 Max Kills in Single Turn 3 | 1 2 3 1 2 . 1 2 3 1 1 . . 2 1 1 1 2 1 . 1 . 1 1 1 1 2 1 . 1 1 2 Gunslinging 1 | . 1 . . . . . . . . . . . . . . . . . . . . . . . . . . . . . . Exploded 3 | . . 3 . 2 . . 2 2 . . . . 2 . . . . . . . . 1 . 1 . 2 . . . . 1 Melee 1 | . . . . . . . . . . . . . 1 . . . . . . . . . . . . . . . . . 1 Uniques/NPCs Destroyed . | . . . . . . . . . . . . . . . . . . . . . . . . . . . . . . . . Combat | -11 -10 -10 -9 -9 -9 -8 -8 -7 -7 -7 -7 -6 -6 -6 -6 -6 -6 -5 -5 -5 -5 -4 -4 -4 -4 -4 -3 -3 -3 -2 -1 -------- Run | Scr Mat Min Mat Min Exi Min Mat Fac Low Low Zio Pro Fac Ext Cet Arc Hub Fac Upp Upp Zhi Pro Fac Upp Upp War Pro Res DSF Res Acc Damage Taken 21006 | . 307 254 505 118 . 169 747 1654 109 454 . 29 494 1490 91 93 560 2474 . 177 . 480 1132 459 40 1807 20 . 1347 23 5973 Core 1773 | . 147 68 51 9 . 42 54 187 . . . . 43 200 8 . . 20 . 37 . . 25 . . 135 . . 113 . 634 Absorbed by Shields 1002 | . . . . . . . . . . . . . . 20 45 . . . . . . . 122 . . 248 7 . 27 . 533 Reduced by Siege Mode 508 | . . . . . . . . . . . . . . . . . . 48 . . . 11 83 . . . . . . . 366 Redirected to Shielding 174 | . . . . . . . . . . . . . . . . . . . . . . . . . . 36 . . 138 . . Regen/Repaired (Parts) 1340 | . . . 94 . . . . 74 . . . . . . . . . 1172 . . . . . . . . . . . . . Core Remaining (%) 77 | 100 . 14 . . . 74 90 . . . . 73 . . . . 70 . . . . 94 . . . . 86 . 91 100 60 Volleys Fired 601 | 1 34 19 36 4 . 7 36 31 2 10 1 . 33 47 10 21 2 67 . 7 . 19 30 14 . 23 3 . 1 10 133 Largest 3 | 2 2 2 2 2 . 2 2 2 2 2 1 . 2 2 2 2 2 2 . 2 . 2 2 2 . 2 2 . 2 2 3 Hottest 330 | 100 100 135 135 112 . 112 124 133 133 133 65 . 180 180 180 170 170 330 . 150 . 150 150 150 . 123 123 . 155 185 290 Shots Fired 1079 | 2 66 24 69 6 . 14 69 59 4 20 1 . 56 87 13 36 3 120 . 11 . 29 48 20 . 44 5 . 1 12 260 Gun 413 | 2 65 5 34 4 . 14 37 13 . . . . . . 1 15 1 53 . 4 . 10 18 6 . 21 2 . . 2 106 Cannon 622 | . . 5 35 . . . 29 43 4 20 1 . 56 87 12 21 2 67 . 7 . 11 30 8 . 21 3 . 1 10 149 Launcher 44 | . 1 14 . 2 . . 3 3 . . . . . . . . . . . . . 8 . 6 . 2 . . . . 5 Special . | . . . . . . . . . . . . . . . . . . . . . . . . . . . . . . . . Kinetic 60 | . . . . . . . . . . . . . . . . . . . . . . . . . . 21 2 . . . 37 Thermal 954 | 2 65 10 64 4 . 14 66 56 4 20 1 . 56 87 13 36 3 120 . 11 . 21 48 13 . 21 3 . 1 12 203 Explosive 23 | . 1 14 . 2 . . 3 3 . . . . . . . . . . . . . . . . . . . . . . . Electromagnetic 42 | . . . 5 . . . . . . . . . . . . . . . . . . 8 . 7 . 2 . . . . 20 Robot Hit Streak 29 | 2 15 5 9 1 . 8 24 17 20 10 . . 12 19 7 8 1 14 . 7 . 13 29 17 . 8 9 . 10 . 29 Robot Miss Streak 6 | . 2 3 1 2 . 3 5 4 . 2 . . 2 2 6 4 1 3 . 1 . 1 1 2 . 3 . . . . 3 Penetration Max 1 | . . . . . . . . . . . . . . . . . . . . . . . . . . . . . . . 1 Secondary Targets 2 | . 1 . . . . 1 . . . . . . . . . . . . . . . . . . . . . . . . . Max Gunslinging Chain 1 | . 1 . . . . 1 . . . . . . . . . . . . . . . . . . . . . . . . . Shots Hit Robots 735 | 2 46 11 51 1 . 9 54 36 3 13 . . 29 57 7 22 1 76 . 7 . 21 35 10 2 34 15 . 9 . 184 Core Hits 326 | 1 18 24 17 4 . 4 23 24 1 6 . . 15 18 5 10 4 33 . 4 . 17 10 13 . 12 5 . 3 . 55 Critical Kills 12 | . . . . . . . . 2 . . . . 1 2 1 . . 1 . . . . 1 . . 1 . . 1 . 2 Critical Parts Destroyed 8 | . . . . . . . . . . . . . . . . . . . . . . . . . 1 . 3 . . . 4 Critical Strikes 27 | . 2 . 2 . . . 2 2 . . . . 1 2 1 . . 1 . . . . 1 . 1 2 3 . 1 . 6 Burn 6 | . 2 . 2 . . . 2 . . . . . . . . . . . . . . . . . . . . . . . . Meltdown 10 | . . . . . . . . 2 . . . . 1 2 1 . . 1 . . . . 1 . . . . . 1 . 1 Destroy 4 | . . . . . . . . . . . . . . . . . . . . . . . . . . 2 . . . . 2 Smash 7 | . . . . . . . . . . . . . . . . . . . . . . . . . 1 . 3 . . . 3 Melee Attacks 53 | . . . . . . . . 8 . . . . . . . . . . . . . . . . 3 2 11 . 10 3 16 Impact 40 | . . . . . . . . . . . . . . . . . . . . . . . . . 3 2 11 . 5 3 16 Slashing 8 | . . . . . . . . 8 . . . . . . . . . . . . . . . . . . . . . . . Piercing 5 | . . . . . . . . . . . . . . . . . . . . . . . . . . . . . 5 . . Sneak Attacks 5 | . . . . . . . . 1 . . . . . . . . . . . . . . . . 1 . . . 3 . . Combat Hostiles 3 | . . . . . . . . . . . . . . . . . . . . . . . . . . . . . 3 . . Follow-up Attacks . | . . . . . . . . . . . . . . . . . . . . . . . . . . . . . . . . Damage Inflicted 28084 | 25 576 1053 949 230 . 157 1227 1374 69 304 . . 1242 2032 358 755 289 2638 . 200 . 1020 1119 776 153 1219 1276 . 359 23 8661 Guns 7684 | 25 576 81 525 19 . 151 501 145 . . . . . . 33 308 . 1247 . 77 . 210 496 96 . 431 47 . . . 2716 Cannons 13745 | . . . 418 . . . 486 726 69 304 . . 965 2032 325 447 32 1391 . 123 . 239 623 170 . 508 65 . 33 . 4789 Explosions 3992 | . . 972 . 194 . . 240 421 . . . . 277 . . . 207 . . . . 571 . 510 . 280 . . . . 320 Melee 2487 | . . . . . . . . 82 . . . . . . . . . . . . . . . . 153 . 1164 . 326 . 762 Ramming 176 | . . . 6 17 . 6 . . . . . . . . . . 50 . . . . . . . . . . . . 23 74 Kinetic 1207 | . . . . . . . . . . . . . . . . . . . . . . . . . . 431 47 . . . 729 Thermal 20184 | 25 576 81 853 19 . 151 987 871 69 304 . . 1242 2032 358 755 32 2638 . 200 . 449 1119 231 . 508 65 . 33 . 6586 Explosive 1827 | . . 972 . 194 . . 240 421 . . . . . . . . . . . . . . . . . . . . . . . Electromagnetic 2203 | . . . 90 . . . . . . . . . . . . . 207 . . . . 571 . 545 . 280 . . . . 510 Impact 2398 | . . . . . . . . . . . . . . . . . . . . . . . . . 153 . 1164 . 319 . 762 Slashing 82 | . . . . . . . . 82 . . . . . . . . . . . . . . . . . . . . . . . Piercing 7 | . . . . . . . . . . . . . . . . . . . . . . . . . . . . . 7 . . Highest Corruption 10 | . . . . . . . 2 3 3 3 . 1 1 2 2 2 6 2 . . . . 7 7 . 4 4 . 5 . 10 Average Corruption 3 | . . . . . . . 2 2 3 2 . 1 1 2 2 1 3 1 . . . . 5 3 . 3 1 . 5 . 5 Corruption Purged 22 | . . . . . . . . . . 3 . 1 3 . . 2 . 3 . . . . . 7 . . 3 . . . . Corruption Blocked 5 | . . . . . . . . . . . . 3 . . . . . . . . . . . . . . . . . 2 . Effects 134 | . . . . . . . 6 14 23 9 . . . 7 6 1 1 . . . . . 4 3 . 1 4 . 4 . 51 Message Errors 36 | . . . . . . . 2 5 8 2 . . . 1 1 . . . . . . . 1 . . . 1 . . . 15 Matter Fused 29 | . . . . . . . 1 3 6 2 . . . 2 1 . . . . . . . 1 2 . . 1 . 2 . 8 Heat Flow Errors 15 | . . . . . . . 1 1 2 1 . . . 2 1 . . . . . . . . . . . . . . . 7 Energy Discharges 13 | . . . . . . . . 1 2 1 . . . . . . 1 . . . . . . . . . . . 1 . 7 Parts Rejected 4 | . . . . . . . 1 . . . . . . . 1 . . . . . . . . . . . . . . . 2 Data Loss (minor) 22 | . . . . . . . . 3 2 3 . . . . 1 1 . . . . . . 1 1 . 1 2 . . . 7 Data Loss (major) 6 | . . . . . . . 1 1 1 . . . . 1 . . . . . . . . 1 . . . . . . . 1 Misfires 4 | . . . . . . . . . 1 . . . . 1 1 . . . . . . . . . . . . . . . 1 Weapon Failures 5 | . . . . . . . . . 1 . . . . . . . . . . . . . . . . . . . 1 . 3 Overload Shots 2 | . . . . . . . . . . . . . . . . . . 2 . . . . . . . . . . . . . Overflow Damage 2240 | . . 62 . 40 . . . 27 . 3 . . 193 5 27 14 68 51 . . . 44 15 . 109 . 1033 . 43 3 503 Projectiles 516 | . . . . . . . . 22 . 3 . . 51 5 27 14 . 51 . . . 44 15 . . . . . . . 284 Explosions 317 | . . 62 . 40 . . . 5 . . . . 142 . . . 68 . . . . . . . . . . . . . . Melee 1407 | . . . . . . . . . . . . . . . . . . . . . . . . . 109 . 1033 . 43 3 219 Knockbacks 9 | . . . . . . . . . . . . . . . . . . . . . . . . . 1 . . . 3 . 5 Impact 7 | . . . . . . . . . . . . . . . . . . . . . . . . . 1 . . . 3 . 3 Kinetic . | . . . . . . . . . . . . . . . . . . . . . . . . . . . . . . . . Secondary 2 | . . . . . . . . . . . . . . . . . . . . . . . . . . . . . . . 2 Self-Inflicted Damage 512 | . . 59 . 77 . . 31 33 . . . . 47 . . . 98 . . . . 2 . 115 . . . . . . 50 Shots 17 | . . 2 . 2 . . 3 1 . . . . 1 . . . 1 . . . . 1 . 3 . . . . . . 3 Rammed 8 | . . . . . . . . . . . . . . . . . 4 . . . . . . . . . . . . . 4 Targets Rammed 14 | . . . 1 1 . 2 . . . . . . . . . . 4 . . . . . . . . . . . . 1 5 Kicked 4 | . . . 1 1 . 2 . . . . . . . . . . . . . . . . . . . . . . . . . Crushed 2 | . . . . . . . . . . . . . . . . . . . . . . . . . . . . . . 1 1 Highest Temperature 589 | 39 388 340 57 24 . 2 511 378 242 119 32 . 216 322 215 9 21 387 . 7 . . 23 300 . 199 142 . . 132 589 Average Temperature 117 | 24 133 176 30 14 . 2 151 152 101 20 21 . 59 94 57 8 14 70 . 4 . . 6 101 . 116 62 . . 58 203 Received Heat Transfer 2894 | . 153 100 162 . . 63 243 186 . 129 . . 90 277 16 27 . 438 . 18 . 72 152 9 21 150 6 . 244 . 338 Effects 26 | . 4 1 . . . . 3 7 . . . . . . . . . 3 . . . . . . . . . . . . 8 Shutdowns 3 | . 1 1 . . . . . 1 . . . . . . . . . . . . . . . . . . . . . . . Energy Bleed 7 | . 1 . . . . . 3 3 . . . . . . . . . . . . . . . . . . . . . . . Interference 13 | . 2 . . . . . . 3 . . . . . . . . . 3 . . . . . . . . . . . . 5 Matter Decay 1 | . . . . . . . . . . . . . . . . . . . . . . . . . . . . . . . 1 Damage (major) 1 | . . . . . . . . . . . . . . . . . . . . . . . . . . . . . . . 1 Damage (core) 1 | . . . . . . . . . . . . . . . . . . . . . . . . . . . . . . . 1 Siege Activations 12 | . . . . . . . . . . . . . . . . . . 4 . 1 . 1 1 . . . . . . . 5 Total Turns 237 | . . . . . . . . . . . . . . . . . . 58 . 10 . 7 40 . . . . . . . 122 Longest Duration 74 | . . . . . . . . . . . . . . . . . . 27 . 10 . 7 40 . . . . . . . 74 Robots Corrupted 5 | . . . . . . . . . . . . . . . . . . . . . . 2 . 3 . . . . . . . Combat Hostiles 5 | . . . . . . . . . . . . . . . . . . . . . . 2 . 3 . . . . . . . Parts Fried 16 | . . . 2 . . 1 . . . . . . . . . . 2 . . . . 2 . . 3 1 . . . 1 4 Impact Corruptions 33 | . . . . . . . . . . . . . . . . . . . . . . . . . 4 . 18 . 2 1 8 Robots Melted 15 | . . . . . . . 1 2 . . . . 1 2 1 . . 2 . . . 1 2 . . . . . 1 . 2 Combat Hostiles 15 | . . . . . . . 1 2 . . . . 1 2 1 . . 2 . . . 1 2 . . . . . 1 . 2 Parts Melted 78 | . 4 . 8 . . . 4 9 . . . . 4 6 1 . . 12 . 1 . 1 8 . . 1 . . . . 19 Heat Transferred 26240 | 74 1779 148 1850 37 . 333 2072 1369 111 481 . . 1477 3050 519 1107 25 3619 . 259 . 592 1295 259 . 750 100 . 50 . 4884 Parts Sabotaged 3 | . . . . . . . . . . . . . 3 . . . . . . . . . . . . . . . . . . Parts Stolen . | . . . . . . . . . . . . . . . . . . . . . . . . . . . . . . . . Parts Stripped . | . . . . . . . . . . . . . . . . . . . . . . . . . . . . . . . . Power Chain Reactions 1 | . . . . . . . . . . . . . . . . . . . . . . . . 1 . . . . . . . Missiles Intercepted . | . . . . . . . . . . . . . . . . . . . . . . . . . . . . . . . . Alert | -11 -10 -10 -9 -9 -9 -8 -8 -7 -7 -7 -7 -6 -6 -6 -6 -6 -6 -5 -5 -5 -5 -4 -4 -4 -4 -4 -3 -3 -3 -2 -1 ------- Run | Scr Mat Min Mat Min Exi Min Mat Fac Low Low Zio Pro Fac Ext Cet Arc Hub Fac Upp Upp Zhi Pro Fac Upp Upp War Pro Res DSF Res Acc Peak Influence 802 | 5 257 123 237 136 . 130 259 222 . . . . 579 421 753 444 255 435 . . . . 109 . . . . 13 54 69 802 Initial 301 | . 3 11 45 2 . . . 27 . . . . 26 283 130 301 155 35 . . . . . . . . . 13 9 13 40 Average 144 | . 76 45 89 58 . 28 75 49 . . . . 169 96 493 404 123 177 . . . . 37 . . . . 13 28 19 371 Maximum Alert Level 3 | . 1 . 1 . . . 1 1 . . . . 2 2 3 2 1 2 . . . . . . . . . . . . 3 Low Security (%) 78 | 100 91 100 94 100 . 100 96 98 . . . . 71 79 25 . 82 66 . . . . 100 . . . . 100 100 100 36 Level 1 10 | . 9 . 5 . . . 3 1 . . . . 14 18 2 37 17 20 . . . . . . . . . . . . 18 Level 2 9 | . . . . . . . . . . . . . 13 1 45 62 . 13 . . . . . . . . . . . . 35 Level 3 2 | . . . . . . . . . . . . . . . 26 . . . . . . . . . . . . . . . 9 Level 4 . | . . . . . . . . . . . . . . . . . . . . . . . . . . . . . . . . Level 5 . | . . . . . . . . . . . . . . . . . . . . . . . . . . . . . . . . High Security . | . . . . . . . . . . . . . . . . . . . . . . . . . . . . . . . . Max Security . | . . . . . . . . . . . . . . . . . . . . . . . . . . . . . . . . Squads Dispatched 43 | . 2 . 1 . . . 2 4 . . . . 8 . . . 2 9 . . . . 3 . . . . . 1 1 10 Investigation 7 | . . . . . . . 1 2 . . . . . . . . . 1 . . . . 1 . . . . . . . 2 Extermination 15 | . . . . . . . . 2 . . . . 2 . . . 1 3 . . . . 2 . . . . . . . 5 Reinforcement 17 | . 2 . 1 . . . 1 . . . . . 5 . . . 1 2 . . . . . . . . . . 1 1 3 Assault 1 | . . . . . . . . . . . . . 1 . . . . . . . . . . . . . . . . . . Garrison 3 | . . . . . . . . . . . . . . . . . . 3 . . . . . . . . . . . . . Intercept . | . . . . . . . . . . . . . . . . . . . . . . . . . . . . . . . . Searches Triggered . | . . . . . . . . . . . . . . . . . . . . . . . . . . . . . . . . Construction Impeded 2 | . . . . . . . . . . . . . 2 . . . . . . . . . . . . . . . . . . Haulers Reinforced 1 | . . . . . . . . . . . . . 1 . . . . . . . . . . . . . . . . . . Active Scanning Responses . | . . . . . . . . . . . . . . . . . . . . . . . . . . . . . . . . Cargo Convoy Interrupts 1 | . . . . . . . . . . . . . . . . . . 1 . . . . . . . . . . . . . Stealth | -11 -10 -10 -9 -9 -9 -8 -8 -7 -7 -7 -7 -6 -6 -6 -6 -6 -6 -5 -5 -5 -5 -4 -4 -4 -4 -4 -3 -3 -3 -2 -1 --------- Run | Scr Mat Min Mat Min Exi Min Mat Fac Low Low Zio Pro Fac Ext Cet Arc Hub Fac Upp Upp Zhi Pro Fac Upp Upp War Pro Res DSF Res Acc Distress Signals 33 | . 3 . 2 . . . 2 5 . . . . 4 2 3 . 1 2 . . . . . . . . . . . 7 2 Communications Jammed 9 | . . . . . . . . . . . . . . . . . . 9 . . . . . . . . . . . . . Distress Signals . | . . . . . . . . . . . . . . . . . . . . . . . . . . . . . . . . Times Spotted 378 | . 13 16 18 4 . 7 19 32 4 17 . 4 35 20 18 11 9 27 . 2 . 12 7 10 1 19 1 . 10 13 49 Peak Tracking Total 12 | . 5 7 5 4 . 3 4 10 4 5 . 3 7 4 5 2 5 3 . 1 . 4 4 5 1 12 1 . 5 9 6 Tactical Retreats 33 | . 1 . . . . 2 1 3 . 6 . . 3 1 . . 1 1 . . . 1 . 1 . 1 . . 3 1 7 Traps | -11 -10 -10 -9 -9 -9 -8 -8 -7 -7 -7 -7 -6 -6 -6 -6 -6 -6 -5 -5 -5 -5 -4 -4 -4 -4 -4 -3 -3 -3 -2 -1 ------- Run | Scr Mat Min Mat Min Exi Min Mat Fac Low Low Zio Pro Fac Ext Cet Arc Hub Fac Upp Upp Zhi Pro Fac Upp Upp War Pro Res DSF Res Acc Traps Triggered 7 | . . . . . . . 1 2 . . . . . 2 . . . . . . . . 1 . . . . . . . 1 Indirectly 1 | . . . . . . . . . . . . . . . . . . . . . . . . . . . . . . . 1 Trap Hack Attempts 109 | . . . 67 42 . . . . . . . . . . . . . . . . . . . . . . . . . . . Triggered . | . . . . . . . . . . . . . . . . . . . . . . . . . . . . . . . . Disarmed 1 | . . . . 1 . . . . . . . . . . . . . . . . . . . . . . . . . . . Reprogrammed 7 | . . . 6 1 . . . . . . . . . . . . . . . . . . . . . . . . . . . Reused 64 | . . . . . . 3 4 4 1 7 . . 9 1 . . . 9 . . . 6 2 1 . . . . . . 17 Traps Reconfigurated 101 | . . . . . . . 9 32 . . . . 23 12 . . 13 5 . . . . 5 . . . . . 2 . . Traps Extracted 78 | . . . 4 5 . . 7 21 3 2 . . 5 4 . . 7 1 2 8 . . . 8 . . . . . . 1 Installed 89 | . . . . 1 . 7 5 5 2 9 . . 5 1 . . 3 8 . 2 . 9 2 2 . . . . . . 28 Triggered 77 | . . . . . . 3 4 4 1 7 . . 9 1 . . . 11 . . . 6 2 1 2 8 . . 1 . 17 Most Traps Carried 29 | . . . 4 8 8 8 3 19 20 21 12 12 12 15 15 15 19 19 14 20 20 26 21 28 29 29 29 29 29 29 29 Machines | -11 -10 -10 -9 -9 -9 -8 -8 -7 -7 -7 -7 -6 -6 -6 -6 -6 -6 -5 -5 -5 -5 -4 -4 -4 -4 -4 -3 -3 -3 -2 -1 ---------- Run | Scr Mat Min Mat Min Exi Min Mat Fac Low Low Zio Pro Fac Ext Cet Arc Hub Fac Upp Upp Zhi Pro Fac Upp Upp War Pro Res DSF Res Acc Machines Disabled 24 | . . . . . . . . 1 . . . . 5 . 5 2 1 5 . . . . . 1 . . . . . . 4 Max in Single Turn 4 | . . . . . . . . 1 . . . . 3 . . . 1 4 . . . . . 1 . . . . . . 1 Garrison Access 5 | . . . . . . . . 1 . . . . 1 . . . . 1 . . . . . . . . . . . 1 1 Network Hub 1 | . . . . . . . . . . . . . . . . . 1 . . . . . . . . . . . . . . Machines Sabotaged . | . . . . . . . . . . . . . . . . . . . . . . . . . . . . . . . . Garrisons Compromised 1 | . . . . . . . . . . . . . . . . . . 1 . . . . . . . . . . . . . Overloaded Fab Kills . | . . . . . . . . . . . . . . . . . . . . . . . . . . . . . . . . Hacking | -11 -10 -10 -9 -9 -9 -8 -8 -7 -7 -7 -7 -6 -6 -6 -6 -6 -6 -5 -5 -5 -5 -4 -4 -4 -4 -4 -3 -3 -3 -2 -1 --------- Run | Scr Mat Min Mat Min Exi Min Mat Fac Low Low Zio Pro Fac Ext Cet Arc Hub Fac Upp Upp Zhi Pro Fac Upp Upp War Pro Res DSF Res Acc Machines Accessed 96 | . 6 . 8 1 2 1 3 12 . . . . 4 9 3 . 5 10 . 1 5 . 7 1 1 8 . 2 . 2 5 Terminals 56 | . 6 . 6 . . 1 1 7 . . . . 2 9 3 . 5 6 . . . . 4 . . . . 1 . 1 4 Fabricators 4 | . . . . . . . . 2 . . . . 1 . . . . 1 . . . . . . . . . . . . . Repair Stations 4 | . . . 1 . . . . 1 . . . . . . . . . 2 . . . . . . . . . . . . . Recycling Units 5 | . . . . . . . 1 . . . . . . . . . . . . . . . 3 . . . . 1 . . . Scanalyzers 3 | . . . 1 . . . 1 1 . . . . . . . . . . . . . . . . . . . . . . . Garrison Access 5 | . . . . . . . . 1 . . . . 1 . . . . 1 . . . . . . . . . . . 1 1 Total Hacks 296 | . 18 . 32 1 5 3 7 26 . . . . 8 31 7 . 23 58 . 1 18 . 21 1 1 9 . 4 . 5 17 Successful 192 | . 10 . 28 1 5 1 6 15 . . . . 7 18 1 . 13 37 . 1 18 . 11 1 1 9 . 3 . 1 5 Failed 103 | . 8 . 3 . . 2 1 11 . . . . 1 13 6 . 10 21 . . . . 10 . . . . 1 . 4 12 Catastrophic 18 | . . . . . . . . . . . . . 1 1 2 . . 5 . . . . 4 . . . . . . 1 4 Database Lockouts 1 | . . . 1 . . . . . . . . . . . . . . . . . . . . . . . . . . . . Manual 89 | . 13 . 13 . 1 3 . 4 . . . . 2 20 1 . 10 14 . . . . 3 . . 1 . . . 2 2 Terminals 193 | . 18 . 20 . . 3 2 16 . . . . 4 31 7 . 23 37 . . . . 13 . . . . 1 . 3 15 Fabricators 10 | . . . . . . . . 3 . . . . 3 . . . . 4 . . . . . . . . . . . . . Repair Stations 21 | . . . 3 . . . . 2 . . . . . . . . . 16 . . . . . . . . . . . . . Recycling Units 12 | . . . . . . . 1 . . . . . . . . . . . . . . . 8 . . . . 3 . . . Scanalyzers 16 | . . . 9 . . . 4 3 . . . . . . . . . . . . . . . . . . . . . . . Garrison Access 8 | . . . . . . . . 2 . . . . 1 . . . . 1 . . . . . . . . . . . 2 2 Terminal Hacks 115 | . 9 . 12 1 5 1 1 5 . . . . 2 12 1 . 8 19 . 1 18 . 4 1 1 9 . 1 . . 4 Record 21 | . . . . . 4 . . 1 . . . . . . 1 . . . . . 6 . 1 . . 8 . . . . . Part Schematic 8 | . 1 . 2 . . . . . . . . . . 1 . . . . . . 4 . . . . . . . . . . Robot Analysis 9 | . 2 . 1 . . . . . . . . . . 1 . . 1 . . . 4 . . . . . . . . . . Prototype ID Bank 14 | . 1 . 3 . . . . 1 . . . . . 1 . . 2 2 . . 4 . . . . . . . . . . Open Door 9 | . . . . 1 . . . . . . . . . 4 . . . . . 1 . . . 1 1 1 . . . . . Open DSF 1 | . . . . . . . . . . . . . . . . . . . . . . . . . . . . 1 . . . Level Access Points 2 | . . . 1 . . . . . . . . . . . . . . . . . . . . . . . . . . . 1 Branch Access Points 5 | . . . . . . . . 1 . . . . 1 1 . . . 1 . . . . 1 . . . . . . . . Terminal Index 2 | . . . . . . . . . . . . . . . . . . . . . . . 1 . . . . . . . 1 Fabricator Index 1 | . . . . . . . . . . . . . . . . . . 1 . . . . . . . . . . . . . Garrison Index 2 | . . . . . . . . . . . . . . . . . 1 1 . . . . . . . . . . . . . Alert Level 6 | . . . . . . . . 1 . . . . . 1 . . 1 2 . . . . 1 . . . . . . . . Unreport Threat 13 | . 2 . 2 . . 1 . 1 . . . . 1 2 . . . 3 . . . . . . . . . . . . 1 Locate Traps 10 | . 2 . 1 . . . 1 . . . . . . 1 . . 1 3 . . . . . . . . . . . . 1 Security Status 1 | . . . . . . . . . . . . . . . . . . 1 . . . . . . . . . . . . . Recall Investigation 1 | . . . . . . . . . . . . . . . . . . 1 . . . . . . . . . . . . . Recall Reinforcements 1 | . . . . . . . . . . . . . . . . . . 1 . . . . . . . . . . . . . Hauler Manifests 3 | . 1 . 1 . . . . . . . . . . . . . . 1 . . . . . . . . . . . . . Zone Layout 5 | . . . 1 . . . . . . . . . . . . . 2 2 . . . . . . . . . . . . . EX-Prototype ID Bank 1 | . . . . . 1 . . . . . . . . . . . . . . . . . . . . . . . . . . Fabricator Hacks 7 | . . . . . . . . 2 . . . . 3 . . . . 2 . . . . . . . . . . . . . Network Status 1 | . . . . . . . . 1 . . . . . . . . . . . . . . . . . . . . . . . Load Schematic 3 | . . . . . . . . . . . . . 2 . . . . 1 . . . . . . . . . . . . . Build 3 | . . . . . . . . 1 . . . . 1 . . . . 1 . . . . . . . . . . . . . Repair Station Hacks 14 | . . . 2 . . . . 2 . . . . . . . . . 10 . . . . . . . . . . . . . Scan Component 7 | . . . 1 . . . . 1 . . . . . . . . . 5 . . . . . . . . . . . . . Repair 7 | . . . 1 . . . . 1 . . . . . . . . . 5 . . . . . . . . . . . . . Recycling Unit Hacks 8 | . . . . . . . 1 . . . . . . . . . . . . . . . 5 . . . . 2 . . . Report Inventory 5 | . . . . . . . 1 . . . . . . . . . . . . . . . 3 . . . . 1 . . . Retrieve Components 3 | . . . . . . . . . . . . . . . . . . . . . . . 2 . . . . 1 . . . Scanalyzer 15 | . . . 9 . . . 4 2 . . . . . . . . . . . . . . . . . . . . . . . Insert Component 7 | . . . 4 . . . 2 1 . . . . . . . . . . . . . . . . . . . . . . . Analyze 8 | . . . 5 . . . 2 1 . . . . . . . . . . . . . . . . . . . . . . . Garrison Access Hacks 4 | . . . . . . . . 1 . . . . 1 . . . . 1 . . . . . . . . . . . 1 . Seal Access 4 | . . . . . . . . 1 . . . . 1 . . . . 1 . . . . . . . . . . . 1 . Unauthorized Hacks 29 | . 1 . 5 . . . . 3 . . . . 1 6 . . 5 5 . . . . 2 . . . . . . . 1 Terminals 28 | . 1 . 5 . . . . 3 . . . . 1 6 . . 5 5 . . . . 2 . . . . . . . . Track 4 | . . . 2 . . . . . . . . . . 1 . . 1 . . . . . . . . . . . . . . Assimilate 2 | . . . . . . . . 1 . . . . . . . . . 1 . . . . . . . . . . . . . Botnet 20 | . 1 . 3 . . . . 2 . . . . 1 4 . . 4 3 . . . . 2 . . . . . . . . Disrupt 2 | . . . . . . . . . . . . . . 1 . . . 1 . . . . . . . . . . . . . Fabricators . | . . . . . . . . . . . . . . . . . . . . . . . . . . . . . . . . Repair Stations . | . . . . . . . . . . . . . . . . . . . . . . . . . . . . . . . . Recycling Units . | . . . . . . . . . . . . . . . . . . . . . . . . . . . . . . . . Scanalyzers . | . . . . . . . . . . . . . . . . . . . . . . . . . . . . . . . . Garrison Access 1 | . . . . . . . . . . . . . . . . . . . . . . . . . . . . . . . 1 Jam 1 | . . . . . . . . . . . . . . . . . . . . . . . . . . . . . . . 1 Data Cores Recovered 1 | . . . 1 . . . . . . . . . . . . . . . . . . . . . . . . . . . . Used 1 | . . . 1 . . . . . . . . . . . . . . . . . . . . . . . . . . . . Hacking Detections 58 | . 6 . 7 . . 1 1 10 . . . . 2 5 3 . 5 9 . . . . 3 . . . . . . 1 5 Full Trace Events 5 | . . . . . . . 1 2 . . . . . . . . . 1 . . . . . . . . . . . . 1 Feedback Events . | . . . . . . . . . . . . . . . . . . . . . . . . . . . . . . . . Feedback Blocked . | . . . . . . . . . . . . . . . . . . . . . . . . . . . . . . . . Robot Schematics Acquired 4 | . . . . . . . . . . . 4 . . . . . . . . . . . . . . . . . . . . Robots Built 4 | . . . . . . . . . . . . . 2 . . . . 2 . . . . . . . . . . . . . Authchips 1 | . . . . . . . . . . . . . 1 . . . . . . . . . . . . . . . . . . Time 444 | . . . . . . . . . . . . . 222 . . . . 222 . . . . . . . . . . . . . Total Robot Build Rating 36 | . . . . . . . . . . . . . 18 . . . . 18 . . . . . . . . . . . . . Part Schematics Acquired 29 | . 1 . 6 . . . 2 . . . 15 . . 1 . . . . . . 4 . . . . . . . . . . Parts Built 1 | . . . . . . . . 1 . . . . . . . . . . . . . . . . . . . . . . . Authchips . | . . . . . . . . . . . . . . . . . . . . . . . . . . . . . . . . Time 93 | . . . . . . . . 93 . . . . . . . . . . . . . . . . . . . . . . . Total Part Build Rating 7 | . . . . . . . . 7 . . . . . . . . . . . . . . . . . . . . . . . Parts Repaired 7 | . . . 1 . . . . 1 . . . . . . . . . 5 . . . . . . . . . . . . . Time 319 | . . . 32 . . . . 51 . . . . . . . . . 236 . . . . . . . . . . . . . Parts Recycled . | . . . . . . . . . . . . . . . . . . . . . . . . . . . . . . . . Recycled Matter . | . . . . . . . . . . . . . . . . . . . . . . . . . . . . . . . . Retrieved Matter . | . . . . . . . . . . . . . . . . . . . . . . . . . . . . . . . . Retrieved Components 8 | . . . . . . . . . . . . . . . . . . . . . . . 5 . . . . 3 . . . Parts Scanalyzed 7 | . . . 4 . . . 2 1 . . . . . . . . . . . . . . . . . . . . . . . Part Schematics Acquired 6 | . . . 4 . . . 2 . . . . . . . . . . . . . . . . . . . . . . . . Parts Damaged . | . . . . . . . . . . . . . . . . . . . . . . . . . . . . . . . . Bothacking | -11 -10 -10 -9 -9 -9 -8 -8 -7 -7 -7 -7 -6 -6 -6 -6 -6 -6 -5 -5 -5 -5 -4 -4 -4 -4 -4 -3 -3 -3 -2 -1 ------------ Run | Scr Mat Min Mat Min Exi Min Mat Fac Low Low Zio Pro Fac Ext Cet Arc Hub Fac Upp Upp Zhi Pro Fac Upp Upp War Pro Res DSF Res Acc Used RIF Installer . | . . . . . . . . . . . . . . . . . . . . . . . . . . . . . . . . Robots Hacked . | . . . . . . . . . . . . . . . . . . . . . . . . . . . . . . . . Non-combat . | . . . . . . . . . . . . . . . . . . . . . . . . . . . . . . . . Combat . | . . . . . . . . . . . . . . . . . . . . . . . . . . . . . . . . Robot Hacks Applied . | . . . . . . . . . . . . . . . . . . . . . . . . . . . . . . . . Relay Couplers Released . | . . . . . . . . . . . . . . . . . . . . . . . . . . . . . . . . Fabnet Peak Effective % . | . . . . . . . . . . . . . . . . . . . . . . . . . . . . . . . . Robots Rewired 19 | . . . . . . . . . . . . 1 . 16 . . . . . . . . . 2 . . . . . . . Allies Hacked 1 | . . . . . . . . . . . . 1 . . . . . . . . . . . . . . . . . . . Hacks Repelled . | . . . . . . . . . . . . . . . . . . . . . . . . . . . . . . . . Allies | -11 -10 -10 -9 -9 -9 -8 -8 -7 -7 -7 -7 -6 -6 -6 -6 -6 -6 -5 -5 -5 -5 -4 -4 -4 -4 -4 -3 -3 -3 -2 -1 -------- Run | Scr Mat Min Mat Min Exi Min Mat Fac Low Low Zio Pro Fac Ext Cet Arc Hub Fac Upp Upp Zhi Pro Fac Upp Upp War Pro Res DSF Res Acc Total Allies 44 | . . 2 . . . . . 1 . . 9 1 2 21 2 . . 3 . . . . . 2 . . . . 1 . . Largest Group 13 | . . 2 . . . . . 1 . . 9 9 6 13 13 5 3 2 . . . . . 1 . . . . 1 . . Highest-Rated Group 549 | . . 43 . . . . . 26 . . 263 263 168 549 549 348 166 138 . . . . . 47 . . . . 50 . . Highest-Rated Ally 159 | . . 31 . . . . . 26 . . 51 51 69 159 159 143 96 69 . . . . . 47 . . . . 50 . . Total Orders 2 | . . . . . . . . . . . . . . . . . . . 2 . . . . . . . . . . . . EXPLORE 2 | . . . . . . . . . . . . . . . . . . . 2 . . . . . . . . . . . . Ally Attacks 380 | . . 1 . . . . . . . . . 35 45 69 150 28 19 27 . . . . . 3 . . . . 3 . . Total Damage 11304 | . . 22 . . . . . . . . . 941 1485 2381 3769 708 610 1186 . . . . . 101 . . . . 101 . . Kills 80 | . . . . . . . . . . . . 8 15 15 24 4 5 9 . . . . . . . . . . . . . Allies Corrupted 2 | . . . . . . . . . . . . . 2 . . . . . . . . . . . . . . . . . . Allies Melted 1 | . . . . . . . . . . . . . . 1 . . . . . . . . . . . . . . . . . Intel | -11 -10 -10 -9 -9 -9 -8 -8 -7 -7 -7 -7 -6 -6 -6 -6 -6 -6 -5 -5 -5 -5 -4 -4 -4 -4 -4 -3 -3 -3 -2 -1 ------- Run | Scr Mat Min Mat Min Exi Min Mat Fac Low Low Zio Pro Fac Ext Cet Arc Hub Fac Upp Upp Zhi Pro Fac Upp Upp War Pro Res DSF Res Acc Robot Analysis Total 9 | . 2 . 1 . . . . . . . . . . 1 . . 1 . . . 4 . . . . . . . . . . Derelict Logs Recovered 13 | . . . . 1 . . . . 2 1 1 2 . . . . . . 1 1 . 2 . 1 1 . . . . . . Drone Launches 2 | . . . . . . . . . . . . . . . . . . . 2 . . . . . . . . . . . . Drone Recoveries . | . . . . . . . . . . . . . . . . . . . . . . . . . . . . . . . . Exploration | -11 -10 -10 -9 -9 -9 -8 -8 -7 -7 -7 -7 -6 -6 -6 -6 -6 -6 -5 -5 -5 -5 -4 -4 -4 -4 -4 -3 -3 -3 -2 -1 ------------- Run | Scr Mat Min Mat Min Exi Min Mat Fac Low Low Zio Pro Fac Ext Cet Arc Hub Fac Upp Upp Zhi Pro Fac Upp Upp War Pro Res DSF Res Acc Turns Passed 31878 | 62 600 300 906 763 487 608 1335 2320 958 1801 1381 1305 1991 1796 645 254 851 1974 823 1044 254 1231 833 1176 915 1277 684 153 196 760 2195 Spaces Moved 17809 | 46 409 203 475 563 404 471 762 1384 585 987 829 753 1086 958 295 78 335 885 508 615 147 698 436 665 534 637 387 94 70 456 1054 Core 1 | 1 . . . . . . . . . . . . . . . . . . . . . . . . . . . . . . . Treads 7785 | . 7 . . . . . 4 . . . . . . . 175 78 335 885 508 615 147 698 436 665 534 637 387 94 70 456 1054 Legs 2722 | . 110 203 475 563 404 471 496 . . . . . . . . . . . . . . . . . . . . . . . . Wheels 7301 | 45 292 . . . . . 262 1384 585 987 829 753 1086 958 120 . . . . . . . . . . . . . . . . Hover . | . . . . . . . . . . . . . . . . . . . . . . . . . . . . . . . . Flight . | . . . . . . . . . . . . . . . . . . . . . . . . . . . . . . . . Fastest Speed 50 | 50 80 120 120 120 120 120 120 120 160 160 160 160 135 135 135 240 240 160 160 160 160 160 160 160 160 160 160 155 152 150 145 Average Speed 154 | 88 101 120 120 120 120 120 140 142 160 170 166 170 156 149 197 240 240 160 160 160 160 160 160 160 167 187 161 158 195 150 149 Slowest Speed 240 | 90 190 120 190 120 120 120 240 160 160 175 175 175 160 160 240 240 240 160 160 160 240 160 160 160 240 240 240 160 232 152 150 Overloaded Moves . | . . . . . . . . . . . . . . . . . . . . . . . . . . . . . . . . Propulsion Burnouts . | . . . . . . . . . . . . . . . . . . . . . . . . . . . . . . . . Robots Hopped . | . . . . . . . . . . . . . . . . . . . . . . . . . . . . . . . . Cave-ins Triggered . | . . . . . . . . . . . . . . . . . . . . . . . . . . . . . . . . Exploration Rate (%) 62 | 4 88 55 47 94 90 96 35 35 85 97 84 96 26 87 78 82 33 19 87 67 61 73 17 86 85 90 71 4 67 33 21 Regions Visited 31 Branch Regions 20 Pre-discovered Areas 11 | . . . . 1 1 . . . . . 3 1 . . . . . . 1 . 3 . . 1 . . . . . . . Known Exits Taken 12 | . . . . . . 1 . 1 1 . . 1 1 1 . . 1 1 . . . 1 1 . . . . 1 . 1 . Unknown Exits Taken 18 | 1 1 1 1 1 1 . 1 . . 1 1 . . . 1 1 . . 1 1 1 . . 1 1 1 1 . . . . Scrap Searched 30 | . . 1 . 1 . 2 . . 2 3 3 4 . . . . . . 2 2 . 3 . 3 3 . 1 . . . . Spaces Dug 147 | . 9 20 . 27 . . 5 7 . . . . 10 7 . . . 6 . 3 . . 12 1 1 1 1 . . 12 25 Terrain Destroyed 586 | . 9 106 . 27 . . 14 28 . 2 . . 40 20 2 4 172 61 . 3 . 3 12 6 1 6 1 . . 12 57 Melee 11 | . . . . . . . . 7 . . . . . . . . . . . . . . . . 1 1 . . . 2 . Projectile 168 | . . 1 . . . . . 4 . 2 . . 20 20 2 4 . 21 . 3 . 3 12 3 . 5 1 . . 10 57 AOE 407 | . 9 105 . 27 . . 14 17 . . . . 20 . . . 172 40 . . . . . 3 . . . . . . . Terrain Rammed . | . . . . . . . . . . . . . . . . . . . . . . . . . . . . . . . . Walls Destroyed . | . . . . . . . . . . . . . . . . . . . . . . . . . . . . . . . . Machines Disabled . | . . . . . . . . . . . . . . . . . . . . . . . . . . . . . . . . Actions | -11 -10 -10 -9 -9 -9 -8 -8 -7 -7 -7 -7 -6 -6 -6 -6 -6 -6 -5 -5 -5 -5 -4 -4 -4 -4 -4 -3 -3 -3 -2 -1 --------- Run | Scr Mat Min Mat Min Exi Min Mat Fac Low Low Zio Pro Fac Ext Cet Arc Hub Fac Upp Upp Zhi Pro Fac Upp Upp War Pro Res DSF Res Acc Total 20973 | 61 530 237 738 640 406 498 956 1644 600 1084 834 770 1310 1224 354 109 372 1313 516 658 166 783 521 749 552 686 421 98 118 520 1505 Wait 1223 | 1 55 8 123 6 . 6 58 99 2 42 . . 115 91 13 2 12 284 . 23 . 34 22 6 1 . 5 . 24 17 174 Move 17777 | 45 408 202 474 562 403 470 761 1383 584 986 828 752 1085 957 294 77 334 884 507 614 146 697 435 664 533 636 386 93 69 455 1053 Hop . | . . . . . . . . . . . . . . . . . . . . . . . . . . . . . . . . Pick Up 200 | 7 11 2 11 5 2 1 21 23 1 6 2 2 8 9 7 3 1 14 1 . 2 5 5 6 4 3 5 1 2 8 22 Fast Attach 87 | 6 4 . 2 . . 1 11 3 . 4 . 1 6 2 7 . 2 5 . . 8 . 4 1 1 3 1 1 . 5 9 Attach 102 | . 1 . 6 1 . . 9 9 1 2 . 1 4 6 1 1 1 9 . . . . 4 2 2 6 2 2 3 6 23 Detach 33 | . . . 2 . . . 6 2 . 2 . . 2 . 1 . . 3 . . 1 . 1 . 1 . 2 1 . 4 5 Swap 375 | 1 5 3 10 13 . 3 28 56 7 15 1 7 43 20 3 3 9 31 7 12 . 14 12 18 4 7 5 . 8 4 26 Drop 179 | . 12 3 6 5 1 1 21 17 1 8 2 4 9 4 18 2 4 8 1 . 9 5 6 3 3 6 1 . 1 7 11 Fire 601 | 1 34 19 36 4 . 7 36 31 2 10 1 . 33 47 10 21 2 67 . 7 . 19 30 14 . 23 3 . 1 10 133 Melee 53 | . . . . . . . . 8 . . . . . . . . . . . . . . . . 3 2 11 . 10 3 16 Ram . | . . . . . . . . . . . . . . . . . . . . . . . . . . . . . . . . Kick 4 | . . . 1 1 . 2 . . . . . . . . . . . . . . . . . . . . . . . . . Crush 10 | . . . . . . . . . . . . . . . . . 4 . . . . . . . . . . . . 1 5 Escape Stasis 8 | . . . . . . . . 8 . . . . . . . . . . . . . . . . . . . . . . . Rewire 123 | . . . . . . . . . . . . 3 . 87 . . . . . . . . . 33 . . . . . . . Trap 198 | . . . 67 43 . 7 5 5 2 9 . . 5 1 . . 3 8 . 2 . 9 2 2 . . . . . . 28 Miscellaneous . | . . . . . . . . . . . . . . . . . . . . . . . . . . . . . . . . Route ------- -11/Scrapyard -10/Materials (discovered 3 exits: *Mat x2 / [*Min]) -10/Mines -9/Materials (discovered 6 exits: *Mat x3 / *Min / [*Sto x2]) -9/Mines (discovered 4 exits: *Mat x2 / *Exi / [*Zio]) -9/Exiles (discovered 2 exits: *Min x2) -8/Mines (discovered 2 exits: *Mat x2) -8/Materials -7/Factory (discovered 3 exits: *Fac / *Low x2) -7/Lower Caves -7/Lower Caves (discovered 2 exits: *Fac / [*Zio]) -7/Zion -6/Proximity Caves -6/Factory (discovered 5 exits: Fac / Low x2 / *Ext x2) -6/Extension (discovered 2 exits: *Fac / *Cet) -6/Cetus (discovered 3 exits: *Fac x2 / [*Arc]) -6/Archives (discovered 3 exits: *Fac / *Hub x2) -6/Hub_04(d) (discovered 2 exits: *Fac x2) -5/Factory (discovered 3 exits: *Fac / *Upp x2) -5/Upper Caves -5/Upper Caves (discovered 2 exits: *Fac / *Zhi) -5/Zhirov -4/Proximity Caves -4/Factory (discovered 2 exits: *Upp x2) -4/Upper Caves -4/Upper Caves (discovered 2 exits: *Res / *War) -4/Warlord -3/Proximity Caves -3/Research (discovered 3 exits: [Arm] / Qua / DSF) -3/DSF -2/Research -1/Access To Epsilon Eridani History --------- Turn | Location | Event 15 | -11/Scrapyard | Discovered new exit (range 14) 63 | -11/Scrapyard | Entered Materials 251 | -10/Materials | Core integrity fell below 50% 317 | -10/Materials | Build established: Mutant 360 | -10/Materials | Discovered new exit (range 14) 457 | -10/Materials | Discovered new exit (range 15) 603 | -10/Materials | Discovered new exit (range 15) 663 | -10/Materials | Entered Mines 845 | -10/Mines | Assembled infested the area 850 | -10/Mines | Assisted by a Guerilla fighting off Assembled 906 | -10/Mines | Discovered new exit (range 13) 913 | -10/Mines | Destroyed 15 combat bots 922 | -10/Mines | Core integrity fell below 20% 963 | -10/Mines | Entered Materials 963 | -9/Materials | Evolved 2 slots: Propulsion x1, Utility x1 1012 | -9/Materials | Discovered new exit (range 16) 1255 | -9/Materials | Discovered new exit (range 5) 1614 | -9/Materials | Discovered new exit (range 17) 1614 | -9/Materials | Central database locked down 1624 | -9/Materials | Identified exit to Materials 1769 | -9/Materials | Discovered new exit (range 5) 1829 | -9/Materials | Repaired Imp. Aluminum Leg 1869 | -9/Materials | Entered Mines 1872 | -9/Mines | Met a Derelict bent on vengeance 1883 | -9/Mines | Discovered exit to Materials (range 8) 1919 | -9/Mines | A Derelict revealed a hidden shortcut to a safe place 2172 | -9/Mines | Learned location of Storage (-9) 2181 | -9/Mines | Met a Derelict who couldn't figure out how to use a Trap Extractor 2342 | -9/Mines | Discovered exit to Materials (range 9) 2626 | -9/Mines | Deemed a non-threat by the Exiles lab entrance 2627 | -9/Mines | Discovered new exit (range 5) 2632 | -9/Mines | Entered Exiles 2648 | -9/Exiles | Discovered new exit (range 15) 2662 | -9/Exiles | Met 8R-AWN 2683 | -9/Exiles | Met EX-HEX 2724 | -9/Exiles | Build established: Trapper-Mutant 2751 | -9/Exiles | Met EX-DEC 2778 | -9/Exiles | Visited The Gauntlet 2917 | -9/Exiles | Learned location of Zion (-7) 2947 | -9/Exiles | Met EX-BIN 2963 | -9/Exiles | Aligned with FarCom system 2965 | -9/Exiles | Given EX-Vault access code 2996 | -9/Exiles | Opened EX-Vault 3004 | -9/Exiles | Found Trap Reconfigurator 3030 | -9/Exiles | Warned to stay clear of 0b10 Research branches 3109 | -9/Exiles | Discovered new exit (range 10) 3119 | -9/Exiles | Left Exiles lab with Trap Reconfigurator 3119 | -9/Exiles | Entered Mines 3340 | -8/Mines | Discovered exit to Materials (range 8) 3433 | -8/Mines | Build established: Mutant 3654 | -8/Mines | Discovered exit to Materials (range 6) 3727 | -8/Mines | Entered Materials 3727 | -8/Materials | Evolved 2 slots: Utility x2 4165 | -8/Materials | Discovered new exit (range 5) 4516 | -8/Materials | Lost 4 parts (2n2u) 5062 | -8/Materials | Entered Factory 5062 | -7/Factory | Evolved 2 slots: Utility x2 5481 | -7/Factory | Repaired Imp. Medium Laser? 5797 | -7/Factory | Build established: Trapper-Skirmisher 6212 | -7/Factory | Lost 3 parts (1p2u) 6741 | -7/Factory | Discovered new exit (range 18) 6787 | -7/Factory | Identified exit to Factory 6868 | -7/Factory | Identified exit to Lower Caves 7208 | -7/Factory | Fabricated Exp. Terrain Scan Processor (x1) 7382 | -7/Factory | Entered Lower Caves 7390 | -7/Lower Caves | Identified exit to Lower Caves 7478 | -7/Lower Caves | Encountered a Warlord checkpoint 7694 | -7/Lower Caves | Build established: Trapper-Mutant 8340 | -7/Lower Caves | Entered another Lower Caves area 8341 | -7/Lower Caves | Encountered a Warlord checkpoint 8368 | -7/Lower Caves | Learned Factory trap positions 8452 | -7/Lower Caves | Discovered exit to Factory (range 11) 9186 | -7/Lower Caves | Attracted the attention of an 0b10 checkpoint 10113 | -7/Lower Caves | Discovered new exit (range 15) 10141 | -7/Lower Caves | Entered Zion 10379 | -7/Zion | Learned location of Quarantine (-3) 10484 | -7/Zion | Gained Derelict followers 10603 | -7/Zion | Learned location of 1 exit from Factory 10728 | -7/Zion | Gained Derelict followers 10814 | -7/Zion | Gained Derelict followers 10948 | -7/Zion | Rebuked by Imprinter 10996 | -7/Zion | Given the Hacking Drone Bay 11434 | -7/Zion | Given A8's code to call for help 11501 | -7/Zion | Discovered new exit (range 13) 11522 | -7/Zion | Entered Proximity Caves 11522 | -6/Proximity Caves | Accompanied by 9 allies 12506 | -6/Proximity Caves | Spotted B-75 Beast 12510 | -6/Proximity Caves | Allies destroyed B-75 Beast 12697 | -6/Proximity Caves | Discovered exit to Factory (range 4) 12827 | -6/Proximity Caves | Entered Factory 12827 | -6/Factory | Accompanied by 6 allies 12827 | -6/Factory | Evolved 2 slots: Utility x2 12828 | -6/Factory | Identified exit to Extension 12829 | -6/Factory | Identified exit to Factory 12830 | -6/Factory | Loaded intel: 87 trap records 14396 | -6/Factory | Fabricated H-88 Terminator? 14516 | -6/Factory | Build established: Hacker-Skirmisher 14577 | -6/Factory | First assault squad dispatched 14731 | -6/Factory | Discovered exit to Extension (range 22) 14754 | -6/Factory | Identified exit to Lower Caves 14818 | -6/Factory | Entered Extension 14818 | -6/Extension | Accompanied by 2 allies 15076 | -6/Extension | Build established: Trapper-Skirmisher 15153 | -6/Extension | Rescued a captive Derelict 15155 | -6/Extension | Rescued a captive Derelict 15511 | -6/Extension | Spotted B-75 Beast 15883 | -6/Extension | Spotted B-75 Beast 15901 | -6/Extension | Destroyed B-75 Beast 15956 | -6/Extension | Destroyed B-75 Beast 15979 | -6/Extension | Lost 3 parts (1n2u) 16088 | -6/Extension | Rescued A7 16289 | -6/Extension | Identified exit to Cetus 16507 | -6/Extension | Rescued a captive Derelict 16562 | -6/Extension | Rescued a captive Derelict 16584 | -6/Extension | Discovered exit to Factory (range 10) 16614 | -6/Extension | Entered Cetus 16614 | -6/Cetus | Accompanied by 13 allies (A7) 16619 | -6/Cetus | Acquired a Cetus Manufacturing Module code from A7 16631 | -6/Cetus | Spotted Cetus Guard 16631 | -6/Cetus | Spotted Cetus Guard 16631 | -6/Cetus | Spotted Cetus Guard 16637 | -6/Cetus | Spotted Cetus Guard 16648 | -6/Cetus | Allies destroyed Cetus Guard 16651 | -6/Cetus | Allies destroyed Cetus Guard 16659 | -6/Cetus | Allies destroyed Cetus Guard 16659 | -6/Cetus | Allies destroyed Cetus Guard 16724 | -6/Cetus | Started Cetus Manufacturing Module 16749 | -6/Cetus | Manufactured an Enhanced Grunt 16774 | -6/Cetus | Manufactured an Enhanced Grunt 16779 | -6/Cetus | Cetus Manufacturing Module disabled 16856 | -6/Cetus | Discovered exit to Factory (range 22) 17000 | -6/Cetus | Discovered new exit (range 21) 17055 | -6/Cetus | Found Prototype Device 17055 | -6/Cetus | Identified Exp. Thermal Shield 17082 | -6/Cetus | Spotted Cetus Guard 17084 | -6/Cetus | Spotted Cetus Guard 17084 | -6/Cetus | Spotted Cetus Guard 17084 | -6/Cetus | Allies destroyed Cetus Guard 17090 | -6/Cetus | Allies destroyed Cetus Guard 17092 | -6/Cetus | Destroyed Cetus Guard 17094 | -6/Cetus | Discovered exit to Factory (range 22) 17096 | -6/Cetus | Spotted Cetus Guard 17099 | -6/Cetus | Allies destroyed Cetus Guard 17120 | -6/Cetus | Met Revision 17 17259 | -6/Cetus | Entered Archives 17259 | -6/Archives | Accompanied by 5 allies (A7) 17346 | -6/Archives | Discovered new exit (range 21) 17466 | -6/Archives | Discovered exit to Factory (range 21) 17469 | -6/Archives | Discovered new exit (range 17) 17513 | -6/Archives | Entered Hub_04(d) 17513 | -6/Hub_04(d) | Accompanied by 3 allies 18110 | -6/Hub_04(d) | Discovered exit to Factory (range 20) 18174 | -6/Hub_04(d) | Discovered exit to Factory (range 14) 18336 | -6/Hub_04(d) | Network Hub disabled 18338 | -6/Hub_04(d) | Spotted Lightning 18339 | -6/Hub_04(d) | Spotted Lightning 18342 | -6/Hub_04(d) | Spotted Lightning 18364 | -6/Hub_04(d) | Entered Factory 18364 | -5/Factory | Evolved 2 slots: Propulsion x1, Utility x1 18419 | -5/Factory | Repaired Hvy. Plasma Cannon? 18493 | -5/Factory | Repaired Centrium Medium Armor Plating? 18585 | -5/Factory | Identified exit to Upper Caves 18604 | -5/Factory | Repaired Centrium Medium Armor Plating? 18707 | -5/Factory | Garrison activated, responded to threat 18724 | -5/Factory | Repaired Centrium Medium Armor Plating? 19009 | -5/Factory | Build established: Trapper-Mutant 19646 | -5/Factory | Discovered new exit (range 21) 19774 | -5/Factory | Cargo convoy interrupted 19891 | -5/Factory | Fabricated H-88 Terminator (x2) 20026 | -5/Factory | Repaired Adv. Variable Charge Gun 20338 | -5/Factory | Entered Upper Caves 20542 | -5/Upper Caves | Spotted B-75 Beast 20986 | -5/Upper Caves | Discovered new exit (range 12) 21161 | -5/Upper Caves | Entered another Upper Caves area 21267 | -5/Upper Caves | Discovered new exit (range 19) 21476 | -5/Upper Caves | Learned Factory emergency access door positions 21848 | -5/Upper Caves | Attracted the attention of an 0b10 checkpoint 22003 | -5/Upper Caves | Discovered new exit (range 12) 22205 | -5/Upper Caves | Entered Zhirov 22205 | -5/Zhirov | Discovered new exit (range 4) 22234 | -5/Zhirov | Met Zhirov 22269 | -5/Zhirov | Learned location of Testing (-2) 22269 | -5/Zhirov | Learned location of Command (-1) 22279 | -5/Zhirov | Zhirov requested help retrieving the SGEMP Prototype 22304 | -5/Zhirov | Found Alien Artifact 22304 | -5/Zhirov | Identified Integrated Dissipator 22304 | -5/Zhirov | Installed Integrated Dissipator, increased core heat dissipation (+20) 22328 | -5/Zhirov | Found Alien Artifact 22459 | -5/Zhirov | Entered Proximity Caves 22485 | -4/Proximity Caves | Learned Research stockpile data 23610 | -4/Proximity Caves | Identified exit to Factory 23690 | -4/Proximity Caves | Entered Factory 23690 | -4/Factory | Evolved 2 slots: Power x1, Utility x1 23832 | -4/Factory | Identified exit to Upper Caves 24523 | -4/Factory | Entered Upper Caves 24955 | -4/Upper Caves | Build established: Trapper-Skirmisher 25538 | -4/Upper Caves | Attracted the attention of an 0b10 outpost 25574 | -4/Upper Caves | Spotted B-86 Titan 25650 | -4/Upper Caves | Discovered new exit (range 16) 25699 | -4/Upper Caves | Entered another Upper Caves area 25752 | -4/Upper Caves | Discovered new exit (range 20) 25824 | -4/Upper Caves | Found Alien Artifact 25824 | -4/Upper Caves | Identified Core Expander 25824 | -4/Upper Caves | Installed Core Expander, added new Power slot 26113 | -4/Upper Caves | Build established: Trapper-Assassin 26402 | -4/Upper Caves | Discovered new exit (range 24) 26559 | -4/Upper Caves | Encountered a Warlord checkpoint 26614 | -4/Upper Caves | Entered Warlord 26639 | -4/Warlord | Discovered new exit (range 21) 26814 | -4/Warlord | Received a Watcher feed algorithm from an ecstatic Tinkerer 26917 | -4/Warlord | Build established: Trapper-Mutant 27171 | -4/Warlord | Learned 4 Research zone layouts 27275 | -4/Warlord | Met Warlord 27288 | -4/Warlord | Warlord's base attacked by MAIN.C 27302 | -4/Warlord | Found Prototype Reactor 27302 | -4/Warlord | Identified Vortex Chain Reactor 27638 | -4/Warlord | Warlord forces counterattacked 27714 | -4/Warlord | Spotted Striker 27797 | -4/Warlord | Spotted Striker 27853 | -4/Warlord | Lost 6 parts (1n5u) 27859 | -4/Warlord | Destroyed Striker 27891 | -4/Warlord | Entered Proximity Caves 28194 | -3/Proximity Caves | Build established: Trapper-Skirmisher 28293 | -3/Proximity Caves | Discovered new exit (range 21) 28531 | -3/Proximity Caves | Attracted the attention of an 0b10 checkpoint 28575 | -3/Proximity Caves | Entered Research 28575 | -3/Research | Evolved 2 slots: Propulsion x2 28576 | -3/Research | Identified exit to Quarantine 28655 | -3/Research | Discovered new exit (range 24) 28728 | -3/Research | Identified exit to DSF 28728 | -3/Research | Entered DSF 28767 | -3/DSF | Additional patrols routed to DSF 28850 | -3/DSF | Discovered new exit (range 19) 28924 | -3/DSF | Entered Research 28924 | -2/Research | Warlord forces began assault on 0b10 28924 | -2/Research | Evolved 2 slots: Utility x1, Weapon x1 28949 | -2/Research | Lost 4 parts (4u) 29034 | -2/Research | Research machine network offline 29037 | -2/Research | Met up with Warlord 29317 | -2/Research | Spotted B-90 Cyclops 29357 | -2/Research | Borebot progress halted 29423 | -2/Research | Spotted Striker 29466 | -2/Research | Build established: Trapper-Assassin 29548 | -2/Research | Spotted Striker 29652 | -2/Research | Discovered new exit (range 20) 29683 | -2/Research | Identified exit to Access 29684 | -2/Research | Entered Access 29684 | -1/Access | Evolved 2 slots: Utility x2 29693 | -1/Access | Spotted B-99 Colossus 30584 | -1/Access | Identified exit to Surface 31458 | -1/Access | Spotted B-99 Colossus 31601 | -1/Access | Build established: Generator-Skirmisher 31747 | -1/Access | Destroyed B-99 Colossus 31763 | -1/Access | Lost 8 parts (1n4u3w) 31815 | -1/Access | System corruption reached 10% 31818 | -1/Access | Found Hvy. Reflective Plating 31836 | -1/Access | Spotted B-99 Colossus 31879 | *** | Escaped! Last Messages --------------- 31846_ Acquired 2 matter. 31848_ Centrium Heavy Treads destroyed. 31848_ Penetrated by Slug. 31848_ Adv. Weapon Cycler destroyed. 31848_ Penetrated by Slug. 31848_ Slug penetrates Reinforced Barrier. 31848_ Slug penetrates Sealed Heavy Doors. 31848_ Slug penetrates Reinforced Barrier. 31852_ Penetrated by Slug. 31852_ Gamma Rifle destroyed. 31852_ Penetrated by Slug. 31852_ Slug penetrates Reinforced Barrier. 31852_ Penetrated by Slug. 31852_ Slug penetrates Reinforced Barrier. 31853_ Sealed Heavy Doors breached. 31854_ 36QR C,XDSF FTHWI F9SNNVQGW1